bitfinex/quotes_SOLUSD_20241103
["timestamp","ask_amount","ask_price","bid_price","bid_amount"]
[1730669474348,0.12549,163.83,163.8,10.54633214]
[1730669474550,0.12549,163.83,163.79,10.54633214]
[1730669474924,16.64933214,163.86,163.8,10.54633214]
[1730669475121,10.54633214,163.87,163.81,10.54633214]
[1730669475427,0.12549,163.86,163.81,10.54633214]
[1730669475617,26.19293214,163.88,163.82,10.54633214]
[1730669475817,10.54633214,163.87,163.81,10.54633214]
[1730669476134,10.54633214,163.86,163.8,10.54633214]
[1730669476334,10.54633214,163.82,163.76,38.88373214]
[1730669476532,70.12549,163.85,163.76,21.858]
[1730669476736,0.12549,163.82,163.77,10.54633214]
[1730669477050,0.12549,163.82,163.78,6.1057]
[1730669477428,0.12549,163.82,163.78,16.65203214]
[1730669477738,0.12549,163.82,163.78,31.91633214]
[1730669478250,10.54633214,163.85,163.79,10.54633214]
[1730669478419,0.12549,163.84,163.79,10.54633214]
[1730669479026,0.12549,163.84,163.8,6.105]
[1730669479349,10.54633214,163.86,163.8,31.91383214]
[1730669479722,0.12549,163.85,163.8,31.91383214]
[1730669480845,10.54633214,163.88,163.83,10.54633214]
[1730669481049,10.54633214,163.87,163.82,10.54633214]
[1730669481438,0.12549,163.89,163.84,10.54633214]
[1730669481748,10.67182214,163.89,163.83,10.54633214]
[1730669481953,10.54633214,163.88,163.83,16.65003214]
[1730669482651,10.54633214,163.85,163.8,21.3671]
[1730669483150,10.54633214,163.86,163.8,31.91343214]
[1730669483848,10.54633214,163.83,163.78,10.54633214]
[1730669484037,10.54633214,163.83,163.78,6.1054]
[1730669484239,10.54633214,163.82,163.78,6.1054]
[1730669484940,10.54633214,163.81,163.77,21.3713]
[1730669485450,10.54633214,163.8,163.77,15.2652]
[1730669485748,23.902374,163.83,163.72,26.96313214]
[1730669485749,10.54633214,163.78,163.72,26.96313214]
[1730669486131,10.67182214,163.77,163.72,6.1079]
[1730669486329,0.12549,163.77,163.72,16.65423214]
[1730669486848,0.12549,163.77,163.73,10.54633214]
[1730669487360,0.12549,163.77,163.72,37.87581845]
[1730669487734,22.60341845,163.79,163.73,16.49801845]
[1730669488053,0.12549,163.78,163.74,6.1072]
[1730669488259,16.62350845,163.78,163.74,6.1072]
[1730669488642,16.62350845,163.78,163.73,22.60551845]
[1730669488843,16.62350845,163.78,163.72,31.76791845]
[1730669489074,16.49801845,163.77,163.72,37.87581845]
[1730669489255,16.62350845,163.78,163.72,37.87581845]
[1730669489640,16.49801845,163.82,163.76,16.49801845]
[1730669490144,16.49801845,163.82,163.77,6.1061]
[1730669490760,0.12549,163.81,163.77,6.1061]
[1730669491352,16.62350845,163.81,163.77,6.1061]
[1730669491553,0.12549,163.81,163.77,6.1061]
[1730669491946,32.94911845,163.85,163.79,16.49801845]
[1730669492146,16.49801845,163.86,163.8,16.49801845]
[1730669492391,6.2369,163.88,163.83,16.49801845]
[1730669492672,16.49801845,163.88,163.82,16.49801845]
[1730669492968,16.49801845,163.87,163.81,16.49801845]
[1730669493745,16.49801845,163.87,163.82,21.3648]
[1730669494446,16.62350845,163.88,163.82,37.86281845]
[1730669494644,16.49801845,163.87,163.82,21.3648]
[1730669494947,14.86102998,163.86,163.84,16.49801845]
[1730669495150,16.49801845,163.87,163.82,21.3648]
[1730669495546,16.49801845,163.86,163.82,21.3648]
[1730669496373,0.12549,163.88,163.83,16.49801845]
[1730669496677,16.62350845,163.88,163.82,37.86281845]
[1730669496872,0.12549,163.88,163.82,21.3648]
[1730669497078,16.49801845,163.87,163.82,21.3648]
[1730669497371,16.49801845,163.87,163.82,37.86281845]
[1730669497572,16.49801845,163.87,163.82,21.3648]
[1730669497870,16.49801845,163.84,163.78,31.76161845]
[1730669498571,16.49801845,163.81,163.78,15.2636]
[1730669498780,16.62350845,163.83,163.78,15.2636]
[1730669499170,40.40039245,163.83,163.78,15.2636]
[1730669499377,23.902374,163.83,163.78,31.76161845]
[1730669499571,23.902374,163.83,163.78,37.86731845]
[1730669499765,86.49801845,163.86,163.8,16.49801845]
[1730669499982,40.27490245,163.85,163.79,16.49801845]
[1730669500172,16.62350845,163.84,163.79,16.49801845]
[1730669500676,16.62350845,163.84,163.78,37.86731845]
[1730669501069,16.62350845,163.82,163.78,15.2636]
[1730669501386,0.12549,163.82,163.78,31.76161845]
[1730669501683,0.12549,163.82,163.78,15.2636]
[1730669502058,0.12549,163.8,163.75,16.49801845]
[1730669503079,0.12549,163.8,163.76,16.49801845]
[1730669503679,16.62350845,163.8,163.75,16.49801845]
[1730669503884,16.62350845,163.78,163.74,21.3744]
[1730669504187,0.12549,163.78,163.75,2.07645671]
[1730669504367,86.49801845,163.82,163.76,16.49801845]
[1730669504684,23.776884,163.81,163.76,16.49801845]
[1730669504980,0.12549,163.8,163.76,16.49801845]
[1730669505283,0.12549,163.8,163.75,16.49801845]
[1730669505460,16.62350845,163.8,163.74,31.76531845]
[1730669506264,23.02131845,163.84,163.79,16.49801845]
[1730669506466,6.5233,163.84,163.79,16.49801845]
[1730669506965,31.87511845,163.85,163.79,16.49801845]
[1730669507186,16.49801845,163.84,163.79,16.49801845]
[1730669507359,0.12549,163.83,163.79,16.49801845]
[1730669507680,0.12549,163.83,163.79,22.60331845]
[1730669507893,16.49801845,163.84,163.79,22.60331845]
[1730669508370,0.12549,163.83,163.79,6.1053]
[1730669508568,14.57857169,163.82,163.79,16.49801845]
[1730669508888,0.12549,163.83,163.79,16.49801845]
[1730669509582,0.12549,163.83,163.79,22.60311845]
[1730669511266,16.49801845,163.83,163.78,15.2639]
[1730669511467,16.62350845,163.84,163.78,31.76191845]
[1730669511666,16.62350845,163.84,163.78,37.86761845]
[1730669512791,16.49801845,163.81,163.78,15.2639]
[1730669512973,16.62350845,163.8,163.74,31.76531845]
[1730669513174,16.62350845,163.8,163.75,2.07896233]
[1730669513575,16.62350845,163.8,163.74,31.76531845]
[1730669514187,16.49801845,163.75,163.71,15.2706]
[1730669514578,16.49801845,163.72,163.68,21.3829]
[1730669514779,0.12549,163.7,163.69,2.0802362]
[1730669514974,0.12549,163.7,163.65,21.3869]
[1730669514975,0.12549,163.69,163.66,2.08156397]
[1730669515168,16.49801845,163.68,163.65,2.08156397]
[1730669515374,16.62350845,163.66,163.64,2.39924977]
[1730669515688,16.49801845,163.65,163.64,2.39924977]
[1730669515892,0.12549,163.65,163.64,2.39924977]
[1730669516077,16.49801845,163.67,163.64,2.39924977]
[1730669516477,0.12549,163.66,163.64,2.39924977]
[1730669516701,16.62350845,163.66,163.64,0.3176858]
[1730669516997,0.12549,163.65,163.64,0.3176858]
[1730669517293,14.28732541,163.65,163.64,0.3176858]
[1730669517498,30.78534386,163.65,163.64,0.3176858]
[1730669518174,40.40039245,163.65,163.64,0.3176858]
[1730669519705,54.5742787,163.65,163.64,0.3176858]
[1730669519884,40.40039245,163.65,163.64,0.3176858]
[1730669522103,116.61099245,163.65,163.64,0.3176858]
[1730669522308,116.71099245,163.65,163.64,0.3176858]
[1730669522605,116.71099245,163.65,163.56,0.3176858]
[1730669522606,23.902374,163.6,163.56,0.3176858]
[1730669522906,16.62350845,163.57,163.56,0.3176858]
[1730669523203,23.776884,163.6,163.56,15.6025858]
[1730669523505,0.12549,163.59,163.56,21.7162858]
[1730669523673,16.62350845,163.59,163.56,15.6025858]
[1730669524681,0.12549,163.57,163.56,15.6025858]
[1730669525083,0.12549,163.57,163.56,0.3176858]
[1730669525500,40.40039245,163.57,163.56,0.3176858]
[1730669525678,110.40039245,163.57,163.56,0.3176858]
[1730669525880,130.07698939,163.57,163.56,0.3176858]
[1730669526079,129.51440106,163.57,163.56,0.3176858]
[1730669526306,128.68323247,163.57,163.56,0.3176858]
[1730669526610,58.98413245,163.57,163.56,0.3176858]
[1730669526781,23.902374,163.57,163.56,0.3176858]
[1730669526981,36.04080031,163.57,163.56,0.3176858]
[1730669527191,23.902374,163.57,163.56,0.3176858]
[1730669527704,40.40039245,163.57,163.56,0.3176858]
[1730669527895,110.40039245,163.57,163.56,0.3176858]
[1730669528080,123.24181954,163.57,163.56,0.3176858]
[1730669528284,110.40039245,163.57,163.56,0.3176858]
[1730669528492,123.53906129,163.57,163.56,0.3176858]
[1730669528695,129.23334326,163.57,163.56,0.3176858]
[1730669528998,116.61389245,163.57,163.56,0.3176858]
[1730669529191,116.71389245,163.57,163.56,0.3176858]
[1730669530007,116.61389245,163.57,163.56,0.3176858]
[1730669530185,123.22400829,163.57,163.56,0.3176858]
[1730669530384,110.60039245,163.57,163.56,0.3176858]
[1730669530602,110.60039245,163.57,163.48,0.3176858]
[1730669530603,23.902374,163.51,163.48,0.3176858]
[1730669530810,40.40039245,163.51,163.48,6.4345858]
[1730669531112,12.12483768,163.5,163.48,6.4345858]
[1730669531297,23.902374,163.51,163.48,6.4345858]
[1730669531497,12.13758724,163.51,163.48,38.22490425]
[1730669531798,23.776884,163.52,163.48,38.22490425]
[1730669531987,23.776884,163.52,163.48,21.7268858]
[1730669532184,40.27490245,163.52,163.48,21.7268858]
[1730669532588,16.49801845,163.51,163.48,21.7268858]
[1730669532793,16.49801845,163.55,163.49,16.49801845]
[1730669533107,12.23022992,163.54,163.5,16.49801845]
[1730669533404,0.12549,163.55,163.5,16.49801845]
[1730669534095,23.902374,163.55,163.51,6.1158]
[1730669534485,40.40039245,163.55,163.51,6.1158]
[1730669534895,16.49801845,163.53,163.49,6.1164]
[1730669535100,40.40039245,163.52,163.48,15.6099858]
[1730669535309,16.62350845,163.5,163.48,0.3176858]
[1730669535601,16.62350845,163.49,163.48,0.3176858]
[1730669535804,40.40039245,163.49,163.48,0.3176858]
[1730669536191,110.40039245,163.49,163.48,0.3176858]
[1730669538210,116.51689245,163.49,163.48,0.3176858]
[1730669538510,116.61689245,163.49,163.48,0.3176858]
[1730669539798,110.40039245,163.49,163.48,0.3176858]
[1730669540187,116.51689245,163.49,163.48,0.3176858]
[1730669540388,116.61689245,163.49,163.48,0.3176858]
[1730669541708,110.40039245,163.49,163.48,0.3176858]
[1730669542114,116.51689245,163.49,163.48,0.3176858]
[1730669542505,40.40039245,163.49,163.48,0.3176858]
[1730669542810,116.51689245,163.49,163.48,0.3176858]
[1730669543212,0.12549,163.43,163.4,0.3176858]
[1730669543398,0.12549,163.41,163.4,0.3176858]
[1730669544608,16.49801845,163.43,163.4,0.3176858]
[1730669545220,16.62350845,163.42,163.4,0.3176858]
[1730669545590,16.62350845,163.41,163.4,0.3176858]
[1730669546522,0.12549,163.41,163.4,0.3176858]
[1730669547614,40.27490245,163.44,163.4,6.4373858]
[1730669547798,0.12549,163.43,163.4,6.4373858]
[1730669547993,0.12549,163.43,163.4,0.3176858]
[1730669548601,16.49801845,163.47,163.42,16.49801845]
[1730669548823,16.49801845,163.48,163.42,16.49801845]
[1730669549014,16.62350845,163.47,163.42,16.49801845]
[1730669549217,16.62350845,163.47,163.43,6.1188]
[1730669549446,16.49801845,163.47,163.43,6.1188]
[1730669549820,0.12549,163.46,163.43,6.1188]
[1730669550255,16.49801845,163.49,163.44,16.49801845]
[1730669550544,16.49801845,163.51,163.45,16.49801845]
[1730669550752,0.12549,163.5,163.45,16.49801845]
[1730669551036,16.49801845,163.52,163.46,37.90991845]
[1730669551250,22.1098,163.55,163.5,16.49801845]
[1730669551251,16.49801845,163.55,163.5,16.49801845]
[1730669551419,16.49801845,163.57,163.51,16.49801845]
[1730669551613,0.12549,163.56,163.51,16.49801845]
[1730669551812,0.12549,163.56,163.52,16.49801845]
[1730669552335,16.49801845,163.58,163.51,16.49801845]
[1730669552336,16.49801845,163.57,163.51,16.49801845]
[1730669552540,0.12549,163.54,163.5,16.49801845]
[1730669552746,0.12549,163.54,163.51,16.49801845]
[1730669552913,16.49801845,163.54,163.48,16.49801845]
[1730669553119,16.49801845,163.54,163.48,37.90691845]
[1730669553422,16.49801845,163.6,163.53,16.49801845]
[1730669553630,16.49801845,163.6,163.54,16.49801845]
[1730669554238,86.49801845,163.61,163.55,16.49801845]
[1730669554542,0.12549,163.6,163.55,22.61221845]
[1730669554750,0.12549,163.57,163.53,37.89951845]
[1730669555435,16.49801845,163.61,163.55,16.49801845]
[1730669555629,86.49801845,163.63,163.57,16.49801845]
[1730669555830,86.49801845,163.63,163.53,27.4755]
[1730669555831,16.62350845,163.62,163.56,16.49801845]
[1730669556049,16.49801845,163.62,163.56,16.49801845]
[1730669556549,0.12549,163.61,163.56,22.61171845]
[1730669556845,40.40039245,163.61,163.56,6.1137]
[1730669557248,23.902374,163.61,163.56,22.61171845]
[1730669557426,40.40039245,163.61,163.56,6.1137]
[1730669557949,16.49801845,163.61,163.56,6.1137]
[1730669558630,0.12549,163.6,163.56,16.49801845]
[1730669559045,0.12549,163.6,163.55,16.49801845]
[1730669559743,16.62350845,163.56,163.5,37.90381845]
[1730669560065,16.49801845,163.55,163.5,37.90381845]
[1730669560437,16.49801845,163.53,163.5,15.2896]
[1730669561428,0.12549,163.5,163.46,21.4113]
[1730669562957,0.12549,163.5,163.46,15.2936]
[1730669563253,16.49801845,163.5,163.46,21.4113]
[1730669563455,16.49801845,163.51,163.46,21.4113]
[1730669563760,40.40039245,163.49,163.44,22.61631845]
[1730669564260,40.40039245,163.49,163.44,6.1183]
[1730669564847,0.12549,163.47,163.42,37.91421845]
[1730669565646,40.40039245,163.46,163.42,21.4162]
[1730669565848,16.49801845,163.45,163.42,21.4162]
[1730669566038,0.12549,163.44,163.42,15.297]
[1730669566526,16.49801845,163.43,163.4,6.4375858]
[1730669566952,0.12549,163.43,163.4,6.4375858]
[1730669567537,23.776884,163.46,163.41,16.49801845]
[1730669567731,0.12549,163.45,163.41,16.49801845]
[1730669568464,16.62350845,163.45,163.4,21.7373858]
[1730669568634,0.12549,163.41,163.4,0.3176858]
[1730669568836,40.40039245,163.41,163.4,0.3176858]
[1730669569047,110.40039245,163.41,163.4,0.3176858]
[1730669569251,116.61989245,163.41,163.4,0.3176858]
[1730669569558,0.12549,163.36,163.31,9.76136513]
[1730669569762,16.49801845,163.34,163.31,6.4408858]
[1730669569942,12.08417167,163.33,163.31,6.4408858]
[1730669570253,16.62350845,163.32,163.31,0.3176858]
[1730669570937,110.50039245,163.32,163.31,0.3176858]
[1730669571254,116.62329245,163.32,163.31,0.3176858]
[1730669571469,126.69092688,163.32,163.31,0.3176858]
[1730669571653,126.79092688,163.32,163.31,0.3176858]
[1730669571860,126.69092688,163.32,163.31,0.3176858]
[1730669572455,126.79092688,163.32,163.31,0.3176858]
[1730669572658,26.69114288,163.26,163.23,0.3176858]
[1730669572832,26.56565288,163.25,163.23,0.3176858]
[1730669573178,0.12549,163.24,163.23,0.3176858]
[1730669573752,26.56565288,163.27,163.23,0.3176858]
[1730669573955,26.69114288,163.26,163.23,6.4436858]
[1730669574661,26.56565288,163.28,163.23,48.32513868]
[1730669574854,26.56565288,163.27,163.23,21.7594858]
[1730669577442,26.56565288,163.27,163.23,0.3176858]
[1730669577443,26.69114288,163.25,163.23,0.3176858]
[1730669578059,26.69114288,163.25,163.21,6.1267]
[1730669578060,120.46802688,163.24,163.15,0.3176858]
[1730669578265,26.56565288,163.16,163.15,0.3176858]
[1730669578761,26.69114288,163.16,163.15,0.3176858]
[1730669579132,26.56565288,163.16,163.15,0.3176858]
[1730669579333,26.56565288,163.17,163.15,0.3176858]
[1730669579757,26.56565288,163.19,163.15,21.7701858]
[1730669579952,26.69114288,163.18,163.15,21.7701858]
[1730669580361,39.3091409,163.19,163.15,21.7701858]
[1730669580549,26.56565288,163.21,163.15,48.33583868]
[1730669580753,0.12549,163.2,163.15,48.33583868]
[1730669581063,26.69114288,163.2,163.15,21.7701858]
[1730669581273,26.69114288,163.2,163.15,48.33583868]
[1730669581570,26.56565288,163.21,163.16,26.56565288]
[1730669582440,26.56565288,163.22,163.17,48.01555288]
[1730669582753,26.56565288,163.23,163.17,48.01555288]
[1730669582938,26.56565288,163.22,163.17,48.01555288]
[1730669583671,26.56565288,163.22,163.17,21.4499]
[1730669584257,26.56565288,163.24,163.18,26.56565288]
[1730669585456,26.56565288,163.23,163.17,48.01555288]
[1730669585659,26.56565288,163.22,163.17,21.4499]
[1730669586072,26.69114288,163.23,163.17,48.01555288]
[1730669586379,26.56565288,163.22,163.17,48.01555288]
[1730669586672,26.56565288,163.21,163.15,33.01233868]
[1730669586868,26.56565288,163.21,163.15,48.33563868]
[1730669587268,0.12549,163.2,163.15,48.33563868]
[1730669587463,0.12549,163.2,163.15,0.3176858]
[1730669587464,26.56565288,163.18,163.15,0.3176858]
[1730669587971,70.12549,163.2,163.15,0.3176858]
[1730669587972,26.56565288,163.16,163.15,0.3176858]
[1730669588770,26.56565288,163.17,163.15,0.3176858]
[1730669589251,6.1281,163.19,163.15,0.3176858]
[1730669589252,26.56565288,163.16,163.15,0.3176858]
[1730669589757,26.56565288,163.21,163.15,42.20663868]
[1730669590069,26.56565288,163.22,163.17,26.56565288]
[1730669590251,0.12549,163.17,163.15,0.3176858]
[1730669590771,26.69114288,163.16,163.15,0.3176858]
[1730669590976,50.46802688,163.16,163.15,0.3176858]
[1730669591553,50.56802688,163.16,163.15,0.3176858]
[1730669591751,67.10832688,163.16,163.15,0.3176858]
[1730669591965,67.20832688,163.16,163.15,0.3176858]
[1730669592274,73.23722688,163.16,163.15,0.3176858]
[1730669592477,73.33722688,163.16,163.15,0.3176858]
[1730669592675,23.902374,163.08,163.07,0.3176858]
[1730669592855,77.03367976,163.08,163.07,0.3176858]
[1730669593060,77.03367976,163.08,162.96,15.3411]
[1730669593061,70.0,163.07,162.96,15.3411]
[1730669593249,70.0,163.07,162.99,0.2319728]
[1730669593250,26.56565288,163.01,162.99,0.2319728]
[1730669593585,26.56565288,163.0,162.99,0.2319728]
[1730669594364,26.69114288,163.0,162.99,0.2319728]
[1730669595585,70.0,163.03,162.99,0.2319728]
[1730669595586,26.56565288,163.03,162.99,0.2319728]
[1730669595781,26.56565288,163.03,162.99,6.3671728]
[1730669596091,26.56565288,163.06,163.0,26.56565288]
[1730669596299,12.9056448,163.06,163.01,41.90205288]
[1730669596481,26.56565288,163.07,163.01,41.90205288]
[1730669596682,26.69114288,163.06,163.01,41.90205288]
[1730669596975,26.56565288,163.08,163.02,26.56565288]
[1730669597589,96.56565288,163.11,163.05,26.56565288]
[1730669598095,12.63700647,163.1,163.09,26.56565288]
[1730669598271,26.56565288,163.15,163.09,26.56565288]
[1730669598466,0.12549,163.16,163.12,26.56565288]
[1730669598669,26.56565288,163.2,163.14,26.56565288]
[1730669599202,39.38362888,163.21,163.16,26.56565288]
[1730669599489,12.817976,163.21,163.16,26.56565288]
[1730669600076,12.817976,163.21,163.17,26.56565288]
[1730669600274,26.56565288,163.22,163.16,26.56565288]
[1730669600491,70.1471634,163.24,163.12,26.56565288]
[1730669600492,26.56565288,163.17,163.12,26.56565288]
[1730669600698,26.56565288,163.19,163.13,26.56565288]
[1730669600885,26.56565288,163.2,163.14,26.56565288]
[1730669601086,26.56565288,163.22,163.16,26.56565288]
[1730669601401,26.56565288,163.23,163.18,26.56565288]
[1730669602296,26.56565288,163.23,163.17,26.56565288]
[1730669603076,26.71281628,163.24,163.18,26.56565288]
[1730669603299,26.56565288,163.23,163.17,48.01525288]
[1730669603502,26.56565288,163.22,163.17,48.01525288]
[1730669603997,26.56565288,163.23,163.17,48.01525288]
[1730669604300,26.56565288,163.2,163.14,26.56565288]
[1730669604705,26.56565288,163.2,163.13,21.4544]
[1730669604706,26.56565288,163.19,163.13,41.89005288]
[1730669605091,26.69114288,163.2,163.15,26.56565288]
[1730669605290,26.56565288,163.19,163.13,48.02005288]
[1730669605716,26.56565288,163.2,163.14,26.56565288]
[1730669606881,26.56565288,163.19,163.14,6.1296]
[1730669607083,26.56565288,163.19,163.09,6.1731]
[1730669607084,26.56565288,163.16,163.1,26.56565288]
[1730669607508,26.56565288,163.15,163.09,48.02575288]
[1730669607713,0.12549,163.13,163.08,26.56565288]
[1730669607890,26.56565288,163.11,163.05,48.03065288]
[1730669608084,26.69114288,163.13,163.07,26.56565288]
[1730669608287,26.56565288,163.12,163.06,26.56565288]
[1730669609520,26.56565288,163.12,163.06,32.69825288]
[1730669610024,0.12549,163.09,163.04,26.56565288]
[1730669610519,26.56565288,163.06,163.0,26.56565288]
[1730669610689,26.56565288,163.08,163.01,26.56565288]
[1730669611397,26.56565288,163.08,163.02,6.1342]
[1730669611620,26.56565288,163.09,163.02,32.69985288]
[1730669611803,26.56565288,163.1,163.03,26.56565288]
[1730669612318,26.56565288,163.08,163.02,48.03535288]
[1730669612692,26.56565288,163.07,163.02,21.4697]
[1730669612895,26.56565288,163.08,163.02,48.03535288]
[1730669613301,26.56565288,163.09,163.03,26.56565288]
[1730669613509,26.56565288,163.09,163.04,6.1334]
[1730669614092,26.56565288,163.09,163.03,32.69925288]
[1730669614316,26.56565288,163.08,163.03,6.1336]
[1730669614827,26.56565288,163.08,163.02,48.03495288]
[1730669615116,26.56565288,163.05,163.0,6.1346]
[1730669617210,26.56565288,163.07,163.01,26.56565288]
[1730669617410,26.56565288,163.08,163.01,26.56565288]
[1730669617727,26.56565288,163.07,163.01,26.56565288]
[1730669618307,26.56565288,163.07,163.0,48.03765288]
[1730669618505,26.56565288,163.07,163.02,6.1342]
[1730669618797,26.56565288,163.08,163.02,32.69985288]
[1730669619011,26.56565288,163.09,163.03,26.56565288]
[1730669619523,26.56565288,163.08,163.02,48.03535288]
[1730669620823,26.56565288,163.09,163.04,26.56565288]
[1730669621119,15.5224,163.16,163.02,15.3355]
[1730669621120,26.56565288,163.13,163.07,26.56565288]
[1730669621500,0.12549,163.12,163.07,26.56565288]
[1730669621718,26.56565288,163.13,163.08,26.56565288]
[1730669621917,26.56565288,163.14,163.08,26.56565288]
[1730669622117,26.56565288,163.12,163.07,26.56565288]
[1730669624740,26.56565288,163.17,163.11,26.56565288]
[1730669624932,26.56565288,163.17,163.12,6.1304]
[1730669625316,26.56565288,163.15,163.1,26.56565288]
[1730669625644,26.56565288,163.15,163.09,32.69715288]
[1730669626721,26.56565288,163.15,163.1,26.56565288]
[1730669627120,26.56565288,163.14,163.08,41.89535288]
[1730669627725,26.56565288,163.15,163.09,26.56565288]
[1730669628317,26.56565288,163.15,163.09,32.69685288]
[1730669628919,26.69114288,163.16,163.1,26.56565288]
[1730669629119,26.56565288,163.15,163.09,32.69685288]
[1730669630247,26.69114288,163.16,163.1,26.56565288]
[1730669630539,26.56565288,163.15,163.09,26.56565288]
[1730669630935,26.56565288,163.2,163.14,26.56565288]
[1730669631129,70.0,163.21,163.1,26.56565288]
[1730669631130,26.56565288,163.16,163.1,26.56565288]
[1730669631640,26.56565288,163.17,163.11,26.56565288]
[1730669631946,26.56565288,163.19,163.13,26.56565288]
[1730669632249,26.56565288,163.21,163.15,26.56565288]
[1730669632450,26.56565288,163.23,163.17,21.4499]
[1730669632741,0.1471634,163.24,163.2,26.56565288]
[1730669634239,0.1471634,163.24,163.2,6.1274]
[1730669634436,0.1471634,163.24,163.23,26.56565288]
[1730669634635,0.1471634,163.24,163.23,46.56565288]
[1730669635069,0.3791362,163.34,163.25,0.1]
[1730669635344,0.3791362,163.34,163.33,26.56565288]
[1730669637656,0.3791362,163.44,163.36,0.1]
[1730669637828,0.3791362,163.44,163.42,26.56565288]
[1730669638028,0.3791362,163.44,163.4,26.56565288]
[1730669638338,0.3791362,163.44,163.39,26.56565288]
[1730669640135,0.12549,163.43,163.38,26.56565288]
[1730669640329,26.69114288,163.43,163.37,41.86765288]
[1730669640551,0.12549,163.43,163.38,26.56565288]
[1730669640751,0.12549,163.43,163.37,15.302]
[1730669640752,0.12549,163.43,163.39,26.56565288]
[1730669640958,0.12549,163.43,163.38,26.56565288]
[1730669641256,0.12549,163.43,163.4,26.56565288]
[1730669642144,0.12549,163.43,163.39,26.56565288]
[1730669643070,0.12549,163.43,163.38,26.56565288]
[1730669643744,0.3791362,163.44,163.41,26.56565288]
[1730669644157,0.3791362,163.44,163.43,26.56565288]
[1730669645733,0.3791362,163.44,163.41,41.86405288]
[1730669645937,0.3791362,163.44,163.4,26.56565288]
[1730669646641,0.3791362,163.44,163.39,26.56565288]
[1730669646865,26.94478908,163.44,163.38,32.68605288]
[1730669647035,0.3791362,163.44,163.41,26.56565288]
[1730669647239,0.3791362,163.44,163.42,26.56565288]
[1730669647561,0.3791362,163.44,163.41,26.56565288]
[1730669647747,0.3791362,163.44,163.4,26.56565288]
[1730669647959,0.3791362,163.44,163.41,26.56565288]
[1730669648349,0.3791362,163.44,163.42,26.56565288]
[1730669648670,0.3791362,163.44,163.41,26.56565288]
[1730669648980,0.3791362,163.44,163.39,41.86645288]
[1730669649463,0.3791362,163.44,163.4,26.56565288]
[1730669649853,0.3791362,163.44,163.39,47.98675288]
[1730669650246,0.3791362,163.44,163.4,26.56565288]
[1730669650966,0.3791362,163.44,163.39,26.56565288]
[1730669651563,26.69114288,163.43,163.37,26.56565288]
[1730669651766,26.69114288,163.43,163.34,20.0]
[1730669651767,26.56565288,163.4,163.34,26.56565288]
[1730669651969,26.56565288,163.41,163.35,26.56565288]
[1730669652261,26.56565288,163.41,163.36,26.56565288]
[1730669652647,0.12549,163.41,163.36,26.56565288]
[1730669652949,0.3791362,163.44,163.4,26.56565288]
[1730669653263,26.56565288,163.41,163.35,26.56565288]
[1730669653560,26.56565288,163.4,163.32,6.1229]
[1730669653761,23.902374,163.43,163.32,6.1229]
[1730669653940,26.56565288,163.4,163.35,26.56565288]
[1730669654151,23.902374,163.43,163.34,15.3046]
[1730669654152,26.56565288,163.39,163.34,41.87025288]
[1730669654358,26.56565288,163.39,163.34,15.3046]
[1730669654562,26.56565288,163.38,163.34,15.3046]
[1730669654741,26.56565288,163.38,163.32,32.68855288]
[1730669655143,26.56565288,163.36,163.31,21.4314]
[1730669655458,0.12549,163.37,163.32,26.56565288]
[1730669656651,0.12549,163.37,163.32,32.68845288]
[1730669657248,0.1797344,163.38,163.33,26.56565288]
[1730669657438,26.74538728,163.38,163.32,47.99575288]
[1730669657652,0.1797344,163.38,163.33,26.56565288]
[1730669657858,26.56565288,163.37,163.32,21.4301]
[1730669658167,26.69114288,163.37,163.32,21.4301]
[1730669658346,26.69114288,163.37,163.32,15.3073]
[1730669658550,26.56565288,163.36,163.3,26.56565288]
[1730669658946,26.56565288,163.35,163.29,47.99975288]
[1730669659145,26.56565288,163.34,163.29,15.3101]
[1730669659357,26.56565288,163.33,163.29,15.3101]
[1730669659564,26.56565288,163.3,163.25,15.3132]
[1730669659770,26.56565288,163.31,163.25,41.87885288]
[1730669659976,26.56565288,163.33,163.27,26.56565288]
[1730669660153,0.12549,163.32,163.27,26.56565288]
[1730669660361,26.56565288,163.33,163.27,26.56565288]
[1730669660541,0.12549,163.32,163.27,26.56565288]
[1730669660741,0.12549,163.32,163.27,32.69035288]
[1730669660964,16.1935,163.35,163.29,26.56565288]
[1730669660965,26.56565288,163.35,163.29,26.56565288]
[1730669661164,32.68705288,163.36,163.3,26.56565288]
[1730669661365,26.56565288,163.34,163.28,26.56565288]
[1730669661756,26.69114288,163.35,163.29,26.56565288]
[1730669662071,26.69114288,163.35,163.29,32.68955288]
[1730669662779,6.1214,163.36,163.29,32.68955288]
[1730669662780,26.56565288,163.37,163.31,26.56565288]
[1730669663355,0.12549,163.36,163.31,26.56565288]
[1730669663866,0.12549,163.36,163.29,21.434]
[1730669663867,26.56565288,163.36,163.3,26.56565288]